bitfinex/quotes_BTCUSD_20241028
["timestamp","ask_amount","ask_price","bid_price","bid_amount"]
[1730080664693,0.39036707,67775.0,67774.0,0.40759417]
[1730080665527,0.39036707,67775.0,67774.0,0.40959417]
[1730080666565,0.39036707,67775.0,67774.0,0.40759417]
[1730080666776,0.39036707,67775.0,67774.0,0.40959417]
[1730080666977,0.39036707,67775.0,67774.0,0.40759417]
[1730080667192,0.39036707,67775.0,67774.0,0.40559417]
[1730080667397,0.39036707,67775.0,67774.0,0.08654136]
[1730080667598,0.46636707,67775.0,67774.0,0.08454136]
[1730080668023,0.46636707,67775.0,67774.0,0.08654136]
[1730080668239,0.61391407,67775.0,67774.0,0.08454136]
[1730080668658,0.61391407,67775.0,67774.0,0.08654136]
[1730080668980,0.46636707,67775.0,67774.0,0.08454136]
[1730080669185,0.46636707,67775.0,67774.0,0.08654136]
[1730080669617,0.46636707,67775.0,67774.0,0.08454136]
[1730080670267,0.46636707,67775.0,67774.0,0.08654136]
[1730080670469,0.46636707,67775.0,67774.0,0.23209036]
[1730080670675,0.61391407,67775.0,67774.0,0.08454136]
[1730080670880,0.61391407,67775.0,67774.0,0.08554136]
[1730080671691,0.61391407,67775.0,67774.0,0.08454136]
[1730080671882,0.46636707,67775.0,67774.0,0.08454136]
[1730080672073,0.46636707,67775.0,67774.0,0.23330744]
[1730080672280,0.46636707,67775.0,67774.0,0.23430744]
[1730080672827,0.46636707,67775.0,67774.0,0.08675844]
[1730080673265,0.46636707,67775.0,67774.0,0.08475844]
[1730080673701,0.61391407,67775.0,67774.0,0.08675844]
[1730080675653,0.46636707,67775.0,67774.0,0.08675844]
[1730080676075,0.61391407,67775.0,67774.0,0.08675844]
[1730080676596,0.61391407,67775.0,67774.0,0.08575844]
[1730080676732,0.61391407,67775.0,67774.0,0.08375844]
[1730080676934,0.61391407,67775.0,67774.0,0.08475844]
[1730080677145,0.46736707,67775.0,67774.0,0.08475844]
[1730080677350,0.61491407,67775.0,67774.0,0.08475844]
[1730080678146,0.61491407,67775.0,67774.0,0.08375844]
[1730080678348,0.61691407,67775.0,67774.0,0.08375844]
[1730080678554,0.70914775,67775.0,67774.0,0.08375844]
[1730080678994,0.80138143,67775.0,67774.0,0.08375844]
[1730080679197,0.80638143,67775.0,67774.0,0.08375844]
[1730080680168,0.90638143,67775.0,67774.0,0.08375844]
[1730080680824,0.72191407,67775.0,67774.0,0.08375844]
[1730080681018,0.82423563,67775.0,67774.0,0.08375844]
[1730080681249,0.82223563,67775.0,67774.0,0.08375844]
[1730080681461,0.84823563,67775.0,67774.0,0.08375844]
[1730080681876,0.75600195,67775.0,67774.0,0.08375844]
[1730080682084,0.84823563,67775.0,67774.0,0.08375844]
[1730080687050,1.1001902,67775.0,67774.0,0.08375844]
[1730080689471,0.91572284,67775.0,67774.0,0.08375844]
[1730080689702,1.1001902,67775.0,67774.0,0.08375844]
[1730080698503,1.14416821,67775.0,67774.0,0.08375844]
[1730080702450,1.1001902,67775.0,67774.0,0.08375844]
[1730080704421,1.16615722,67775.0,67774.0,0.08375844]
[1730080706199,1.21013523,67775.0,67774.0,0.08375844]
[1730080708179,1.21031997,67775.0,67774.0,0.08375844]
[1730080712531,1.16627462,67775.0,67774.0,0.08375844]
[1730080712967,1.1662733,67775.0,67774.0,0.08375844]
[1730080714301,1.1001902,67775.0,67774.0,0.08375844]
[1730080714995,1.32774733,67775.0,67774.0,0.08375844]
[1730080715833,1.23551365,67775.0,67774.0,0.08375844]
[1730080716042,1.32774733,67775.0,67774.0,0.08375844]
[1730080716265,1.23963653,67775.0,67774.0,0.08375844]
[1730080716478,1.32777908,67775.0,67774.0,0.08375844]
[1730080716706,1.23963653,67775.0,67774.0,0.08375844]
[1730080716910,1.34977503,67775.0,67774.0,0.08375844]
[1730080717137,1.32778076,67775.0,67774.0,0.08375844]
[1730080717410,1.23963653,67775.0,67774.0,0.08375844]
[1730080717630,1.34977503,67775.0,67774.0,0.08375844]
[1730080717868,1.23963653,67775.0,67774.0,0.08375844]
[1730080718526,1.34977503,67775.0,67774.0,0.08375844]
[1730080718750,1.25761003,67775.0,67774.0,0.08375844]
[1730080718969,1.34984371,67775.0,67774.0,0.08375844]
[1730080719193,1.25761003,67775.0,67774.0,0.08375844]
[1730080719419,1.14740285,67775.0,67774.0,0.08375844]
[1730080719644,1.25761832,67775.0,67774.0,0.08375844]
[1730080720529,1.05516917,67775.0,67774.0,0.08375844]
[1730080720750,1.14740285,67775.0,67774.0,0.08375844]
[1730080721265,1.25760706,67775.0,67774.0,0.08375844]
[1730080721485,1.14740285,67775.0,67774.0,0.08375844]
[1730080721971,0.8083604,67775.0,67774.0,0.08375844]
[1730080722211,0.47011407,67775.0,67774.0,0.08375844]
[1730080722441,0.47011407,67775.0,67774.0,0.16535844]
[1730080722663,0.32256707,67775.0,67774.0,0.16535844]
[1730080723145,0.45711407,67775.0,67774.0,0.16535844]
[1730080723601,0.44511407,67775.0,67774.0,0.16535844]
[1730080724040,0.29856707,67775.0,67774.0,0.16535844]
[1730080724477,0.29856707,67775.0,67774.0,0.26035844]
[1730080725176,0.29656707,67775.0,67774.0,0.26035844]
[1730080725619,0.29956707,67775.0,67774.0,0.26035844]
[1730080726073,0.44511407,67775.0,67774.0,0.26035844]
[1730080726303,0.44711407,67775.0,67774.0,0.26035844]
[1730080728775,0.44511407,67775.0,67774.0,0.26035844]
[1730080729019,0.44411407,67775.0,67774.0,0.26035844]
[1730080729649,0.44411407,67775.0,67774.0,0.26135844]
[1730080730657,0.44411407,67775.0,67774.0,0.08475844]
[1730080732148,0.44411407,67775.0,67774.0,0.08375844]
[1730080732867,0.44711407,67775.0,67774.0,0.08375844]
[1730080733087,0.44911407,67775.0,67774.0,0.08375844]
[1730080733927,0.69685156,67775.0,67774.0,0.08375844]
[1730080734175,0.87836864,67775.0,67774.0,0.08375844]
[1730080734380,0.88959436,67775.0,67774.0,0.08375844]
[1730080735288,0.88459436,67775.0,67774.0,0.08375844]
[1730080735728,0.88959436,67775.0,67774.0,0.08375844]
[1730080735967,0.88759436,67775.0,67774.0,0.08375844]
[1730080736183,1.03910312,67775.0,67774.0,0.08375844]
[1730080736399,1.15210312,67775.0,67774.0,0.08375844]
[1730080738091,1.01159436,67775.0,67774.0,0.08375844]
[1730080741151,1.15184078,67775.0,67774.0,0.08375844]
[1730080742683,1.2617655,67775.0,67774.0,0.08375844]
[1730080743109,1.15162206,67775.0,67774.0,0.08375844]
[1730080743523,1.26176698,67775.0,67774.0,0.08375844]
[1730080743731,1.15162206,67775.0,67774.0,0.08375844]
[1730080747703,1.26174673,67775.0,67774.0,0.08375844]
[1730080748829,1.26174826,67775.0,67774.0,0.08375844]
[1730080749034,1.15162206,67775.0,67774.0,0.08375844]
[1730080750160,1.40162206,67775.0,67774.0,0.08375844]
[1730080751435,1.42113424,67775.0,67774.0,0.08375844]
[1730080752369,1.28110654,67775.0,67774.0,0.08375844]
[1730080752581,1.42309648,67775.0,67774.0,0.08375844]
[1730080754768,1.42349743,67775.0,67774.0,0.08375844]
[1730080757244,1.40398525,67775.0,67774.0,0.08375844]
[1730080762073,1.40372433,67775.0,67774.0,0.08375844]
[1730080766757,1.40372009,67775.0,67774.0,0.08375844]
[1730080771525,1.40349373,67775.0,67774.0,0.08375844]
[1730080772433,1.53572358,67775.0,67774.0,0.08375844]
[1730080773378,1.40349373,67775.0,67774.0,0.08375844]
[1730080774964,1.32269373,67775.0,67774.0,0.08375844]
[1730080776320,1.32339861,67775.0,67774.0,0.08375844]
[1730080778376,1.23116493,67775.0,67774.0,0.08375844]
[1730080778601,1.32339861,67775.0,67774.0,0.08375844]
[1730080778828,1.13966493,67775.0,67774.0,0.08375844]
[1730080779081,1.13966493,67775.0,67774.0,0.18105844]
[1730080779082,0.97268153,67775.0,67774.0,0.18105844]
[1730080779324,0.88966493,67775.0,67774.0,0.18105844]
[1730080779561,0.76922213,67775.0,67774.0,0.18105844]
[1730080779779,0.61871832,67775.0,67774.0,0.18105844]
[1730080780254,0.72404155,67775.0,67774.0,0.26415844]
[1730080780490,0.68796471,67775.0,67774.0,0.26415844]
[1730080780962,0.60771832,67775.0,67774.0,0.26415844]
[1730080781192,0.59971832,67775.0,67774.0,0.26415844]
[1730080781420,0.45711407,67775.0,67774.0,0.26415844]
[1730080781648,0.45111407,67775.0,67774.0,0.26415844]
[1730080782105,0.45911407,67775.0,67774.0,0.26415844]
[1730080782561,0.5172788,67775.0,67774.0,0.26415844]
[1730080782781,0.3767318,67775.0,67774.0,0.26415844]
[1730080783012,0.5022239,67775.0,67774.0,0.26415844]
[1730080783434,0.45811407,67775.0,67774.0,0.26415844]
[1730080784330,0.5022239,67775.0,67774.0,0.26415844]
[1730080785218,0.50220543,67775.0,67774.0,0.26415844]
[1730080785511,0.45811407,67775.0,67774.0,0.26415844]
[1730080788163,0.55034775,67775.0,67774.0,0.26415844]
[1730080789318,0.68667279,67775.0,67774.0,0.08375844]
[1730080789526,0.61648479,67775.0,67774.0,0.08375844]
[1730080789742,0.55034775,67775.0,67774.0,0.08375844]
[1730080790417,0.61645147,67775.0,67774.0,0.08375844]
[1730080793070,0.55034775,67775.0,67774.0,0.08375844]
[1730080793289,0.61643583,67775.0,67774.0,0.08375844]
[1730080793724,0.55034775,67775.0,67774.0,0.08375844]
[1730080793935,0.61643434,67775.0,67774.0,0.08375844]
[1730080795303,0.61644267,67775.0,67774.0,0.08375844]
[1730080798402,0.55034775,67775.0,67774.0,0.08375844]
[1730080799481,0.78883519,67775.0,67774.0,0.08375844]
[1730080799748,0.87704726,67775.0,67774.0,0.08375844]
[1730080799975,0.70867999,67775.0,67774.0,0.08375844]
[1730080800227,0.61644631,67775.0,67774.0,0.08375844]
[1730080800680,0.97842032,67775.0,67774.0,0.08375844]
[1730080800924,1.13814121,67775.0,67774.0,0.08375844]
[1730080801160,1.05001154,67775.0,67774.0,0.08375844]
[1730080801388,1.16017363,67775.0,67774.0,0.08375844]
[1730080801606,1.05001154,67775.0,67774.0,0.08375844]
[1730080803323,1.04232854,67775.0,67774.0,0.08375844]
[1730080803568,1.03532854,67775.0,67774.0,0.08375844]
[1730080803802,1.06232854,67775.0,67774.0,0.08375844]
[1730080804250,1.21526142,67775.0,67774.0,0.08375844]
[1730080804470,1.20126142,67775.0,67774.0,0.08375844]
[1730080804691,1.21226142,67775.0,67774.0,0.08375844]
[1730080804945,0.97486118,67775.0,67774.0,0.08375844]
[1730080805166,1.14832854,67775.0,67774.0,0.08375844]
[1730080805375,1.16032854,67775.0,67774.0,0.08375844]
[1730080807160,1.29252745,67775.0,67774.0,0.08375844]
[1730080807369,1.16032854,67775.0,67774.0,0.08375844]
[1730080807617,1.29252745,67775.0,67774.0,0.08375844]
[1730080807870,1.01460232,67775.0,67774.0,0.08375844]
[1730080808083,1.2936148,67775.0,67774.0,0.08375844]
[1730080808309,1.16141411,67775.0,67774.0,0.08375844]
[1730080809017,1.29360626,67775.0,67774.0,0.08375844]
[1730080809248,1.16141411,67775.0,67774.0,0.08375844]
[1730080809950,0.97694675,67775.0,67774.0,0.08375844]
[1730080810198,1.16141411,67775.0,67774.0,0.08375844]
[1730080812974,0.97694675,67775.0,67774.0,0.08375844]
[1730080813202,0.97288043,67775.0,67774.0,0.08375844]
[1730080813884,0.88064675,67775.0,67774.0,0.08375844]
[1730080814122,0.97288043,67775.0,67774.0,0.08375844]
[1730080815277,1.06511411,67775.0,67774.0,0.08375844]
[1730080815756,0.97288043,67775.0,67774.0,0.08375844]
[1730080816609,1.06511411,67775.0,67774.0,0.08375844]
[1730080816824,0.97288043,67775.0,67774.0,0.08375844]
[1730080817249,1.06511411,67775.0,67774.0,0.08375844]
[1730080817475,0.97288043,67775.0,67774.0,0.08375844]
[1730080818449,0.88064675,67775.0,67774.0,0.08375844]
[1730080818680,0.99083937,67775.0,67774.0,0.08375844]
[1730080818897,0.88064675,67775.0,67774.0,0.08375844]
[1730080819115,0.99083937,67775.0,67774.0,0.08375844]
[1730080819823,0.88064675,67775.0,67774.0,0.08375844]
[1730080820257,0.99083937,67775.0,67774.0,0.08375844]
[1730080821638,0.88064675,67775.0,67774.0,0.08375844]
[1730080821871,0.87964103,67775.0,67774.0,0.08375844]
[1730080824347,0.97187471,67775.0,67774.0,0.08375844]
[1730080824798,1.27832828,67775.0,67774.0,0.08375844]
[1730080825262,1.28032828,67775.0,67774.0,0.08375844]
[1730080825475,1.27832828,67775.0,67774.0,0.08375844]
[1730080825696,1.14607471,67775.0,67774.0,0.08375844]
[1730080825931,1.27832828,67775.0,67774.0,0.08375844]
[1730080826376,1.27876884,67775.0,67774.0,0.08375844]
[1730080826624,1.14651858,67775.0,67774.0,0.08375844]
[1730080829503,1.14851858,67775.0,67774.0,0.08375844]
[1730080829957,1.14651858,67775.0,67774.0,0.08375844]
[1730080831332,1.14675948,67775.0,67774.0,0.08375844]
[1730080834162,1.13475948,67775.0,67774.0,0.08375844]
[1730080834373,1.26703321,67775.0,67774.0,0.08375844]
[1730080834594,1.27903321,67775.0,67774.0,0.08375844]
[1730080835040,1.26603321,67775.0,67774.0,0.08375844]
[1730080835256,1.26803321,67775.0,67774.0,0.08375844]
[1730080835686,1.25403321,67775.0,67774.0,0.08375844]
[1730080835945,1.26803321,67775.0,67774.0,0.08375844]
[1730080836420,1.00159953,67775.0,67774.0,0.08375844]
[1730080836630,0.96155948,67775.0,67774.0,0.08375844]
[1730080837293,0.97555948,67775.0,67774.0,0.08375844]
[1730080837731,0.96155948,67775.0,67774.0,0.08375844]
[1730080837962,0.97555948,67775.0,67774.0,0.08375844]
[1730080840711,0.9742979,67775.0,67774.0,0.08375844]
[1730080845416,0.97390132,67775.0,67774.0,0.08375844]
[1730080847890,0.97438108,67775.0,67774.0,0.08375844]
[1730080848341,1.06661476,67775.0,67774.0,0.08375844]
[1730080848555,0.97438108,67775.0,67774.0,0.08375844]
[1730080848761,1.06661476,67775.0,67774.0,0.08375844]
[1730080850303,1.19899536,67775.0,67774.0,0.08375844]
[1730080854083,1.19910192,67775.0,67774.0,0.08375844]
[1730080854963,1.19912998,67775.0,67774.0,0.08375844]
[1730080856046,1.06673231,67775.0,67774.0,0.08375844]
[1730080856297,1.19913678,67775.0,67774.0,0.08375844]
[1730080856812,1.06673231,67775.0,67774.0,0.08375844]
[1730080859478,1.06660604,67775.0,67774.0,0.08375844]
[1730080863548,1.31610985,67775.0,67774.0,0.08375844]
[1730080863999,1.36903125,67775.0,67774.0,0.08375844]
[1730080864229,1.31457049,67775.0,67774.0,0.08375844]
[1730080864703,1.16560604,67775.0,67774.0,0.08375844]
[1730080871357,1.36903125,67775.0,67774.0,0.08375844]
[1730080871580,1.16560604,67775.0,67774.0,0.08375844]
[1730080872042,1.16590372,67775.0,67774.0,0.08375844]
[1730080872253,1.13790372,67775.0,67774.0,0.08375844]
[1730080872670,1.16590372,67775.0,67774.0,0.08375844]
[1730080874266,1.36974569,67775.0,67774.0,0.08375844]
[1730080874484,1.16590372,67775.0,67774.0,0.08375844]
[1730080874967,1.30671404,67775.0,67774.0,0.08375844]
[1730080875187,1.36974569,67775.0,67774.0,0.08375844]
[1730080876620,1.37221975,67775.0,67774.0,0.08375844]
[1730080877297,0.9757009,67775.0,67774.0,0.08375844]
[1730080878866,0.9477009,67775.0,67774.0,0.08375844]
[1730080879302,0.9757009,67775.0,67774.0,0.08375844]
[1730080879515,0.9617009,67775.0,67774.0,0.08375844]
[1730080879962,1.10391073,67775.0,67774.0,0.08375844]
[1730080880195,0.97148382,67775.0,67774.0,0.08375844]
[1730080880400,0.9757009,67775.0,67774.0,0.08375844]
[1730080880624,0.97148382,67775.0,67774.0,0.08375844]
[1730080880876,0.9757009,67775.0,67774.0,0.08375844]
[1730080881537,0.9617009,67775.0,67774.0,0.08375844]
[1730080882434,0.97148382,67775.0,67774.0,0.08375844]
[1730080882660,0.96648382,67775.0,67774.0,0.08375844]
[1730080883090,0.9707009,67775.0,67774.0,0.08375844]
[1730080883313,0.9757009,67775.0,67774.0,0.08375844]
[1730080885858,0.97555742,67775.0,67774.0,0.08375844]
[1730080886292,0.97134034,67775.0,67774.0,0.08375844]
[1730080886501,0.97555742,67775.0,67774.0,0.08375844]
[1730080887164,0.97134034,67775.0,67774.0,0.08375844]
[1730080887620,0.96634034,67775.0,67774.0,0.08375844]
[1730080887871,0.72360285,67775.0,67774.0,0.08375844]
[1730080888283,0.81583653,67775.0,67774.0,0.08375844]
[1730080890638,0.71663009,67775.0,67774.0,0.08375844]
[1730080890860,0.72705182,67775.0,67774.0,0.25775844]
[1730080891108,0.47211407,67775.0,67774.0,0.25775844]
[1730080891568,0.51627986,67775.0,67774.0,0.25775844]
[1730080892025,0.47211407,67775.0,67774.0,0.25775844]
[1730080892241,0.51627259,67775.0,67774.0,0.25775844]
[1730080893209,0.47211407,67775.0,67774.0,0.25775844]
[1730080894110,0.51627259,67775.0,67774.0,0.25775844]
[1730080894347,0.47211407,67775.0,67774.0,0.25775844]
[1730080895755,0.51626387,67775.0,67774.0,0.25775844]
[1730080896182,0.47211407,67775.0,67774.0,0.25775844]
[1730080897101,0.44411407,67775.0,67774.0,0.25775844]
[1730080897332,0.45211407,67775.0,67774.0,0.25775844]
[1730080897793,0.44811407,67775.0,67774.0,0.25775844]
[1730080898021,0.46011407,67775.0,67774.0,0.25775844]
[1730080904547,0.46011407,67775.0,67774.0,0.25854136]
[1730080908540,0.31256707,67775.0,67774.0,0.40609036]
[1730080908772,0.31256707,67775.0,67774.0,0.25854136]
[1730080909018,0.46011407,67775.0,67774.0,0.25854136]
[1730080909688,0.46011407,67775.0,67774.0,0.08375844]
[1730080910844,0.45411407,67775.0,67774.0,0.08375844]
[1730080911081,0.49822297,67775.0,67774.0,0.08375844]
[1730080911548,0.50941062,67775.0,67774.0,0.08375844]
[1730080911780,0.52041062,67775.0,67774.0,0.08375844]
[1730080912196,0.47630172,67775.0,67774.0,0.08375844]
[1730080912680,0.52041221,67775.0,67774.0,0.08375844]
[1730080914282,0.47630172,67775.0,67774.0,0.08375844]
[1730080914745,0.52041966,67775.0,67774.0,0.08375844]
[1730080916776,0.47630172,67775.0,67774.0,0.08375844]
[1730080917574,0.5685354,67775.0,67774.0,0.08375844]
[1730080920623,0.66076908,67775.0,67774.0,0.08375844]
[1730080921290,0.5685354,67775.0,67774.0,0.08375844]
[1730080921512,0.90008524,67775.0,67774.0,0.08375844]
[1730080921721,0.80785156,67775.0,67774.0,0.08375844]
[1730080922614,0.90430232,67775.0,67774.0,0.08375844]
[1730080922846,1.08440232,67775.0,67774.0,0.08375844]
[1730080926431,1.22873151,67775.0,67774.0,0.08375844]
[1730080929490,1.22877438,67775.0,67774.0,0.08375844]
[1730080930652,1.23877438,67775.0,67774.0,0.08375844]
[1730080931071,1.22877438,67775.0,67774.0,0.08375844]
[1730080931298,1.23877438,67775.0,67774.0,0.08375844]
[1730080931741,1.48358971,67775.0,67774.0,0.08375844]
[1730080931971,1.35104143,67775.0,67774.0,0.08375844]
[1730080932187,1.4835355,67775.0,67774.0,0.08375844]
[1730080932635,1.35015211,67775.0,67774.0,0.08375844]
[1730080932868,1.23788506,67775.0,67774.0,0.08375844]
[1730080938221,1.23838872,67775.0,67774.0,0.08375844]
[1730080941430,1.21738872,67775.0,67774.0,0.08375844]
[1730080941635,1.22738872,67775.0,67774.0,0.08375844]
[1730080941854,1.23938872,67775.0,67774.0,0.08375844]
[1730080942285,1.22938872,67775.0,67774.0,0.08375844]
[1730080942514,1.24038872,67775.0,67774.0,0.08375844]
[1730080943649,1.23943308,67775.0,67774.0,0.08375844]
[1730080944104,1.22843308,67775.0,67774.0,0.08375844]
[1730080944335,1.24243308,67775.0,67774.0,0.08375844]
[1730080944565,1.29126908,67775.0,67774.0,0.08375844]
[1730080944796,1.27726908,67775.0,67774.0,0.08375844]
[1730080945033,1.29126908,67775.0,67774.0,0.08375844]
[1730080945536,1.30526908,67775.0,67774.0,0.08375844]
[1730080945791,1.30526908,67775.0,67764.0,9e-05]
[1730080945792,0.44625244,67765.0,67764.0,9e-05]
[1730080946013,1.21319712,67760.0,67759.0,2e-07]
[1730080946233,0.51381408,67752.0,67751.0,0.18686024]
[1730080946481,0.00421708,67737.0,67736.0,0.21984948]
[1730080946752,0.39458357,67737.0,67736.0,0.21984948]
[1730080946974,0.39458357,67737.0,67736.0,0.03645748]
[1730080946975,0.49458357,67737.0,67736.0,0.03645748]
[1730080947413,0.39813281,67737.0,67736.0,0.02619347]
[1730080947658,0.49036649,67737.0,67736.0,0.02619347]
[1730080947900,0.147649,67728.0,67727.0,0.02269701]
[1730080948112,0.295289,67731.0,67726.0,0.00078292]
[1730080948113,0.147651,67727.0,67726.0,0.00078292]
[1730080948335,0.147651,67727.0,67726.0,0.02347993]
[1730080949053,0.147649,67728.0,67726.0,0.02347993]
[1730080949510,0.29527,67735.0,67726.0,0.02347993]
[1730080949511,0.1,67737.0,67731.0,0.00078292]
[1730080949734,0.36748648,67734.0,67731.0,0.00078292]
[1730080949944,0.1,67737.0,67732.0,0.0816]
[1730080950171,0.147634,67735.0,67732.0,0.0816]
[1730080950626,0.14748645,67735.0,67732.0,0.0816]
[1730080950855,0.147637,67734.0,67732.0,0.0816]
[1730080951088,0.147638,67733.0,67732.0,0.0816]
[1730080951320,0.295268,67735.0,67732.0,0.10407261]
[1730080951321,0.442902,67735.0,67732.0,0.10407261]
[1730080951536,0.442902,67735.0,67732.0,0.0816]
[1730080951537,0.295268,67735.0,67732.0,0.0816]
[1730080951755,0.147638,67733.0,67732.0,0.0816]
[1730080951973,0.147638,67733.0,67732.0,0.10407261]
[1730080952944,0.295267,67736.0,67732.0,0.10407261]
[1730080953166,0.147638,67733.0,67732.0,0.0816]
[1730080953398,0.147638,67733.0,67732.0,0.10297808]
[1730080953639,0.19223368,67737.0,67733.0,0.00078292]
[1730080953640,0.09223368,67737.0,67733.0,0.00078292]
[1730080953876,0.09223368,67737.0,67732.0,0.10297808]
[1730080953877,0.147618,67742.0,67741.0,0.00078292]
[1730080954106,0.147618,67742.0,67741.0,0.022161]
[1730080954576,0.147618,67742.0,67741.0,0.03242663]
[1730080954803,0.23984968,67744.0,67741.0,0.03242663]
[1730080955039,0.23984968,67744.0,67743.0,0.00078292]
[1730080955040,0.147614,67744.0,67743.0,0.00078292]
[1730080955284,0.23984768,67744.0,67743.0,0.02225373]
[1730080955506,0.23984768,67744.0,67743.0,0.03249222]
[1730080955718,0.23984768,67744.0,67743.0,0.02225373]
[1730080955927,0.23984768,67744.0,67743.0,0.03249222]
[1730080956381,0.23984768,67744.0,67743.0,0.02225373]
[1730080957678,0.24084768,67744.0,67743.0,0.02225373]
[1730080958342,0.23984768,67744.0,67743.0,0.02225373]
[1730080958553,0.24284768,67744.0,67743.0,0.02225373]
[1730080958771,0.24284768,67744.0,67743.0,0.02147081]
[1730080959003,0.24284768,67744.0,67743.0,0.02225373]
[1730080959492,0.24684768,67744.0,67743.0,0.02225373]
[1730080959702,0.24684768,67744.0,67743.0,0.02147081]
[1730080959932,0.147623,67740.0,67739.0,0.00078292]
[1730080960193,0.295258,67738.0,67732.0,0.0816]
[1730080960427,0.51757281,67740.0,67727.0,0.00078292]
[1730080960428,0.147649,67728.0,67727.0,0.2983324]
[1730080960646,0.29529,67730.0,67727.0,0.02169624]
[1730080960875,0.295304,67727.0,67725.0,0.00078292]
[1730080961107,0.147653,67726.0,67725.0,0.00078292]
[1730080961331,0.147653,67726.0,67725.0,0.02241545]
[1730080962699,0.28185015,67726.0,67725.0,0.02241545]
[1730080963593,0.14540893,67740.0,67729.0,0.00078292]
[1730080963594,0.42947415,67733.0,67729.0,0.00078292]
[1730080963804,0.147645,67730.0,67729.0,0.00078292]
[1730080964010,0.147645,67730.0,67729.0,0.02328122]
[1730080964225,0.147645,67730.0,67729.0,0.0224983]
[1730080964226,0.65219544,67730.0,67729.0,0.0224983]
[1730080964432,0.43234596,67730.0,67729.0,0.0224983]
[1730080965095,0.147655,67725.0,67724.0,0.0224983]
[1730080965307,0.28185515,67724.0,67723.0,0.025]
[1730080965758,0.28185515,67724.0,67723.0,0.0465229]
[1730080967936,0.590596,67728.0,67723.0,0.0465229]
[1730080967937,0.295298,67728.0,67725.0,0.00078292]
[1730080968185,0.147649,67728.0,67727.0,0.00078292]
[1730080968421,0.147649,67728.0,67727.0,0.02297567]
[1730080968648,0.147649,67728.0,67727.0,0.03356719]
[1730080968870,0.147649,67728.0,67727.0,0.02297567]
[1730080969308,0.149649,67728.0,67727.0,0.02297567]
[1730080970002,0.002,67728.0,67727.0,0.02297567]
[1730080970226,0.149649,67728.0,67727.0,0.02297567]
[1730080970450,0.149649,67728.0,67727.0,0.03356719]
[1730080970451,0.002,67728.0,67727.0,0.03356719]
[1730080970658,0.149649,67728.0,67727.0,0.03356719]
[1730080970883,0.150649,67728.0,67727.0,0.03356719]
[1730080971551,0.150649,67728.0,67727.0,0.02297567]
[1730080972889,0.150649,67728.0,67727.0,0.02379867]
[1730080973585,0.15047131,67728.0,67727.0,0.02379867]
[1730080974445,0.15047131,67728.0,67727.0,0.01879867]
[1730080977082,0.37032079,67728.0,67727.0,0.01879867]
[1730080977328,0.15047131,67728.0,67727.0,0.01879867]
[1730080980992,0.15047131,67728.0,67727.0,0.10079867]
[1730080981695,0.15047131,67728.0,67727.0,0.11139339]
[1730080982531,0.15047131,67728.0,67727.0,0.10079867]
[1730080983022,0.29812231,67728.0,67727.0,0.02118367]
[1730080983226,0.29812231,67728.0,67700.0,0.42961615]
[1730080983227,0.147657,67725.0,67721.0,0.147664]
[1730080983463,0.147656,67725.0,67721.0,0.147664]
[1730080983683,0.147658,67724.0,67722.0,0.01066259]
[1730080983905,0.442955,67727.0,67722.0,0.15832359]
[1730080984131,0.295307,67726.0,67718.0,0.295342]
[1730080984335,0.147658,67724.0,67723.0,0.01064347]
[1730080984549,0.147658,67724.0,67720.0,0.147666]
[1730080984788,0.14766,67723.0,67721.0,0.01067105]
[1730080985021,0.147652,67727.0,67722.0,0.147661]
[1730080985231,0.147656,67725.0,67721.0,0.147663]
[1730080985442,0.147656,67725.0,67723.0,0.01064369]
[1730080985654,0.147656,67725.0,67721.0,0.147663]
[1730080985655,0.295313,67725.0,67722.0,0.01065727]
[1730080985867,0.31984948,67730.0,67724.0,0.01063012]
[1730080986076,0.295298,67728.0,67723.0,0.0818]
[1730080986297,0.147653,67726.0,67725.0,0.01061654]
[1730080986517,0.295294,67729.0,67723.0,0.0818]
[1730080986518,0.147655,67725.0,67724.0,0.01063012]
[1730080986731,0.147655,67725.0,67723.0,0.0818]
[1730080986952,0.147658,67724.0,67723.0,0.0818]
[1730080987393,0.295306,67727.0,67723.0,0.0818]
[1730080987595,0.147658,67724.0,67723.0,0.0818]
[1730080988607,0.295306,67727.0,67723.0,0.0818]
[1730080988826,0.147658,67724.0,67723.0,0.0818]
[1730080989030,0.147655,67726.0,67723.0,0.0818]
[1730080989251,0.295306,67727.0,67723.0,0.0818]
[1730080989444,0.31984948,67730.0,67723.0,0.0818]
[1730080989652,0.2953,67728.0,67723.0,0.0818]
[1730080989857,0.295311,67726.0,67723.0,0.0818]
[1730080990032,0.1,67730.0,67723.0,0.0818]
[1730080990384,0.147658,67724.0,67723.0,0.0818]
[1730080994576,0.147662,67722.0,67721.0,0.000823]
[1730080995011,0.29532,67724.0,67721.0,0.000823]
[1730080995224,0.147662,67722.0,67721.0,0.000823]
[1730080996410,0.29532,67724.0,67721.0,0.000823]
[1730080996411,0.147659,67724.0,67721.0,0.000823]
[1730080996629,0.147662,67722.0,67721.0,0.000823]
[1730080998107,0.147662,67722.0,67721.0,0.01148423]
[1730080998316,0.295314,67725.0,67721.0,0.000823]
[1730080998520,0.147662,67722.0,67721.0,0.01148423]
[1730080998651,0.147662,67722.0,67721.0,0.000823]
[1730080998855,0.147662,67722.0,67721.0,0.01148423]
[1730080999063,0.147662,67722.0,67721.0,0.000823]
[1730080999266,0.147662,67722.0,67721.0,0.01179687]
[1730080999476,0.147662,67722.0,67721.0,0.000823]
[1730080999670,0.147662,67722.0,67721.0,0.01179687]
[1730081000080,0.295316,67724.0,67721.0,0.01179687]
[1730081000285,0.147662,67722.0,67721.0,0.01179687]
[1730081001538,0.295311,67725.0,67721.0,0.01179687]
[1730081001750,0.001644,67728.0,67721.0,0.01179687]
[1730081001950,0.296942,67728.0,67721.0,0.01179687]
[1730081002158,0.295312,67725.0,67721.0,0.01179687]
[1730081002379,0.147662,67722.0,67721.0,0.01179687]
[1730081002586,0.295312,67725.0,67721.0,0.01179687]
[1730081002793,0.001644,67728.0,67721.0,0.01179687]
[1730081003003,0.147662,67722.0,67721.0,0.01179687]
[1730081003223,0.147661,67723.0,67721.0,0.01179687]
[1730081003430,0.147662,67722.0,67721.0,0.01179687]
[1730081003659,0.46181148,67722.0,67721.0,0.01179687]
[1730081003876,0.241962,67722.0,67721.0,0.01179687]
[1730081004086,0.241962,67722.0,67721.0,0.000823]
[1730081004954,0.241962,67722.0,67721.0,0.0117971]
[1730081005174,0.295314,67725.0,67721.0,0.0117971]
[1730081005376,0.295321,67723.0,67721.0,0.0117971]
[1730081005602,0.295314,67725.0,67721.0,0.0117971]
[1730081005603,0.147662,67722.0,67721.0,0.0117971]
[1730081006253,0.147662,67722.0,67721.0,0.000823]
[1730081006717,0.147662,67722.0,67721.0,0.01180244]
[1730081007598,0.590614,67726.0,67721.0,0.01180244]
[1730081007855,0.147662,67722.0,67721.0,0.01180244]